[Event "Betsys MČR v online bleskovém šachu 2021"]
[Site "Chess.com"]
[Date "2021.04.17"]
[Round "12"]
[White "DavidekIII"]
[Black "Tolja1"]
[Result "0-1"]
[WhiteElo "2185"]
[BlackElo "2052"]
[TimeControl "180+1"]
[EndTime "11:02:29 PDT"]
[Termination "Uživatel Tolja1 zvítězil na čas"]

1. d4 {[%clk 0:03:00.9]} 1... e6 {[%clk 0:02:59.5]} 2. c4 {[%clk 0:03:00.2]}
2... f5 {[%clk 0:02:59.2]} 3. Nc3 {[%clk 0:02:59.4]} 3... Nf6 {[%clk 0:02:58.8]}
4. Nf3 {[%clk 0:02:58.8]} 4... Bb4 {[%clk 0:02:57.9]} 5. Bf4 {[%clk 0:02:50.1]}
5... b6 {[%clk 0:02:55.6]} 6. e3 {[%clk 0:02:47.5]} 6... Bb7 {[%clk 0:02:53.1]}
7. Be2 {[%clk 0:02:26.1]} 7... O-O {[%clk 0:02:51.4]} 8. O-O {[%clk 0:02:25.2]}
8... Bxc3 {[%clk 0:02:51.4]} 9. bxc3 {[%clk 0:02:24.4]} 9... d6 {[%clk
0:02:51.7]} 10. Nd2 {[%clk 0:02:19.2]} 10... Nbd7 {[%clk 0:02:47.5]} 11. Bf3
{[%clk 0:02:15]} 11... Bxf3 {[%clk 0:02:45]} 12. Qxf3 {[%clk 0:02:13.2]} 12...
Qe7 {[%clk 0:02:44.7]} 13. a4 {[%clk 0:02:09.7]} 13... a5 {[%clk 0:02:44]} 14.
h3 {[%clk 0:02:04.1]} 14... e5 {[%clk 0:02:40.4]} 15. Bh2 {[%clk 0:02:03.3]}
15... g6 {[%clk 0:02:33]} 16. Rab1 {[%clk 0:01:57.4]} 16... Qe6 {[%clk
0:02:31.6]} 17. Rb5 {[%clk 0:01:48.9]} 17... e4 {[%clk 0:02:22.9]} 18. Qe2
{[%clk 0:01:22.7]} 18... Rac8 {[%clk 0:02:18.2]} 19. Rd1 {[%clk 0:01:22.1]}
19... Rf7 {[%clk 0:02:09.1]} 20. Nf1 {[%clk 0:01:10.4]} 20... Kg7 {[%clk
0:02:05.4]} 21. Kh1 {[%clk 0:01:01.1]} 21... h6 {[%clk 0:02:03.8]} 22. Nd2
{[%clk 0:00:54.7]} 22... g5 {[%clk 0:01:53.3]} 23. Re1 {[%clk 0:00:49.8]} 23...
Kg6 {[%clk 0:01:47.7]} 24. f3 {[%clk 0:00:47.9]} 24... exf3 {[%clk 0:01:42.1]}
25. Qxf3 {[%clk 0:00:43.2]} 25... Ne4 {[%clk 0:01:35.3]} 26. Nxe4 {[%clk
0:00:40.8]} 26... fxe4 {[%clk 0:01:35]} 27. Qe2 {[%clk 0:00:37]} 27... Rcf8
{[%clk 0:01:33.2]} 28. Bg3 {[%clk 0:00:35.4]} 28... Nf6 {[%clk 0:01:18.4]} 29.
Rbb1 {[%clk 0:00:18.9]} 29... Nh5 {[%clk 0:01:08.5]} 30. Kh2 {[%clk 0:00:15.2]}
30... Nxg3 {[%clk 0:01:01.1]} 31. Kxg3 {[%clk 0:00:16.1]} 31... Rf2 {[%clk
0:01:00.2]} 32. Qxf2 {[%clk 0:00:14]} 32... Rxf2 {[%clk 0:00:59.9]} 33. Kxf2
{[%clk 0:00:14.9]} 33... Qxc4 {[%clk 0:00:59.9]} 34. Rbc1 {[%clk 0:00:12.8]}
34... Qxa4 {[%clk 0:00:59.1]} 35. Re2 {[%clk 0:00:12]} 35... Qc4 {[%clk
0:00:58.1]} 36. Rd2 {[%clk 0:00:10.4]} 36... d5 {[%clk 0:00:55.8]} 37. Kg1
{[%clk 0:00:10.1]} 37... a4 {[%clk 0:00:55.3]} 38. Kf2 {[%clk 0:00:06.4]} 38...
b5 {[%clk 0:00:54.9]} 39. Rcc2 {[%clk 0:00:06.5]} 39... c6 {[%clk 0:00:53.2]}
40. Ke1 {[%clk 0:00:05.6]} 40... Qb3 {[%clk 0:00:49.8]} 41. Ke2 {[%clk
0:00:05.2]} 41... Qb1 {[%clk 0:00:45.1]} 42. Kf2 {[%clk 0:00:05]} 42... h5
{[%clk 0:00:41.3]} 43. Re2 {[%clk 0:00:04.7]} 43... a3 {[%clk 0:00:33.9]} 44.
Ra2 {[%clk 0:00:02.5]} 44... Qb3 {[%clk 0:00:33.5]} 45. Rec2 {[%clk 0:00:02.6]}
45... Kf5 {[%clk 0:00:31.7]} 46. Ke2 {[%clk 0:00:02.9]} 46... h4 {[%clk
0:00:28.9]} 47. Kd2 {[%clk 0:00:02.9]} 47... g4 {[%clk 0:00:27.1]} 48. Ra1
{[%clk 0:00:03.2]} 48... g3 {[%clk 0:00:19.6]} 49. Rca2 {[%clk 0:00:02.7]} 49...
b4 {[%clk 0:00:17]} 50. cxb4 {[%clk 0:00:02.1]} 50... Qd3+ {[%clk 0:00:16.7]}
51. Kc1 {[%clk 0:00:01.9]} 51... Qxe3+ {[%clk 0:00:16.5]} 52. Kc2 {[%clk
0:00:02.3]} 52... Qd3+ {[%clk 0:00:16.1]} 53. Kc1 {[%clk 0:00:02.6]} 53... Qc3+
{[%clk 0:00:14.2]} 54. Kd1 {[%clk 0:00:02.7]} 54... Qxd4+ {[%clk 0:00:13.9]} 55.
Ke2 {[%clk 0:00:02.5]} 55... Qd3+ {[%clk 0:00:12.7]} 56. Ke1 {[%clk 0:00:02.7]}
56... Qc3+ {[%clk 0:00:12.4]} 57. Ke2 {[%clk 0:00:02.9]} 57... Qxb4 {[%clk
0:00:12.4]} 58. Rxa3 {[%clk 0:00:03.2]} 58... Qc4+ {[%clk 0:00:12.4]} 59. Ke1
{[%clk 0:00:03.6]} 59... d4 {[%clk 0:00:11.7]} 60. Ra5+ {[%clk 0:00:03.1]} 60...
c5 {[%clk 0:00:11.8]} 61. Ra8 {[%clk 0:00:02.9]} 61... Qc3+ {[%clk 0:00:09.3]}
62. Kd1 {[%clk 0:00:02.7]} 62... e3 {[%clk 0:00:08.6]} 63. Rf8+ {[%clk
0:00:01.9]} 63... Ke4 {[%clk 0:00:07.3]} 64. Re8+ {[%clk 0:00:01.2]} 64... Kd3
{[%clk 0:00:06.6]} 0-1

[Event "Betsys MČR v online bleskovém šachu 2021"]
[Site "Chess.com"]
[Date "2021.04.17"]
[Round "12"]
[White "czechfant94"]
[Black "Koli05"]
[Result "0-1"]
[WhiteElo "1599"]
[BlackElo "1818"]
[TimeControl "180+1"]
[EndTime "11:02:31 PDT"]
[Termination "Uživatel Koli05 zvítězil matem"]

1. e4 {[%clk 0:03:00.9]} 1... c5 {[%clk 0:02:59]} 2. Nf3 {[%clk 0:03:00.9]} 2...
d6 {[%clk 0:02:58.6]} 3. d4 {[%clk 0:03:01.2]} 3... cxd4 {[%clk 0:02:59.3]} 4.
Nxd4 {[%clk 0:03:02.1]} 4... Nf6 {[%clk 0:02:59.4]} 5. Nc3 {[%clk 0:03:02.3]}
5... Nc6 {[%clk 0:02:59.8]} 6. Be3 {[%clk 0:03:02.5]} 6... Ng4 {[%clk
0:02:58.5]} 7. Qd2 {[%clk 0:02:58.6]} 7... Nxe3 {[%clk 0:02:53.1]} 8. Qxe3
{[%clk 0:02:58.1]} 8... Qb6 {[%clk 0:02:47]} 9. O-O-O {[%clk 0:02:51.5]} 9...
Bg4 {[%clk 0:02:33.5]} 10. f3 {[%clk 0:02:50]} 10... Bd7 {[%clk 0:02:32.7]} 11.
Qd3 {[%clk 0:02:36.4]} 11... Nb4 {[%clk 0:02:26.6]} 12. Qc4 {[%clk 0:02:25.4]}
12... Rc8 {[%clk 0:02:24.7]} 13. Qb3 {[%clk 0:02:24.9]} 13... a5 {[%clk
0:02:17.4]} 14. a3 {[%clk 0:02:24.1]} 14... e5 {[%clk 0:01:51]} 15. Nde2 {[%clk
0:02:09.1]} 15... Qe3+ {[%clk 0:01:45.3]} 16. Kb1 {[%clk 0:01:58.8]} 16... Na6
{[%clk 0:01:35.1]} 17. Qxb7 {[%clk 0:01:54.5]} 17... Nc5 {[%clk 0:01:23.6]} 18.
Qb6 {[%clk 0:01:43.5]} 18... Be7 {[%clk 0:01:10.1]} 19. Rd3 {[%clk 0:01:42.6]}
19... Qf2 {[%clk 0:00:51.8]} 20. Rd1 {[%clk 0:01:41.9]} 20... O-O {[%clk
0:00:49.8]} 21. Ng3 {[%clk 0:01:39.8]} 21... Rb8 {[%clk 0:00:46.7]} 22. Qxa5
{[%clk 0:01:38.2]} 22... Ra8 {[%clk 0:00:37.1]} 23. Qb4 {[%clk 0:01:32.7]} 23...
Rfb8 {[%clk 0:00:30.1]} 24. Qc4 {[%clk 0:01:32.2]} 24... Rxa3 {[%clk 0:00:21.6]}
25. Qe2 {[%clk 0:01:24]} 25... Qxe2 {[%clk 0:00:15.7]} 26. Bxe2 {[%clk
0:01:24.3]} 26... Rxc3 {[%clk 0:00:15]} 27. b3 {[%clk 0:01:20.1]} 27... Re3
{[%clk 0:00:12]} 28. Bc4 {[%clk 0:01:16.2]} 28... Be6 {[%clk 0:00:10.9]} 29. Nf1
{[%clk 0:01:14]} 29... Rc3 {[%clk 0:00:08]} 30. Kb2 {[%clk 0:01:14]} 30... Rxc4
{[%clk 0:00:07.1]} 31. Ra1 {[%clk 0:01:04.8]} 31... Rcb4 {[%clk 0:00:06.8]} 32.
Nd2 {[%clk 0:01:04.4]} 32... R4b7 {[%clk 0:00:06.2]} 33. Ra5 {[%clk 0:01:01.7]}
33... g6 {[%clk 0:00:05.9]} 34. Rha1 {[%clk 0:01:00.9]} 34... Kg7 {[%clk
0:00:05.9]} 35. Kc3 {[%clk 0:00:58.7]} 35... Bg5 {[%clk 0:00:05.4]} 36. g3
{[%clk 0:00:56.8]} 36... Bxd2+ {[%clk 0:00:04.8]} 37. Kxd2 {[%clk 0:00:57.7]}
37... Rb5 {[%clk 0:00:04.7]} 38. Ra7 {[%clk 0:00:56.9]} 38... Bxb3 {[%clk
0:00:04.2]} 39. Kc3 {[%clk 0:00:52.8]} 39... Be6 {[%clk 0:00:03.4]} 40. Re7
{[%clk 0:00:51.6]} 40... Kf6 {[%clk 0:00:04.3]} 41. Raa7 {[%clk 0:00:50.6]}
41... Nxe4+ {[%clk 0:00:04.2]} 42. fxe4 {[%clk 0:00:50]} 42... Rc5+ {[%clk
0:00:04.5]} 43. Kd3 {[%clk 0:00:49.9]} 43... Rb4 {[%clk 0:00:04]} 44. h4 {[%clk
0:00:48.7]} 44... Rd4+ {[%clk 0:00:03.9]} 45. Ke3 {[%clk 0:00:47.9]} 45... Rc3+
{[%clk 0:00:04.1]} 46. Ke2 {[%clk 0:00:47.5]} 46... Rxc2+ {[%clk 0:00:04.4]} 47.
Ke1 {[%clk 0:00:47]} 47... Rxe4+ {[%clk 0:00:04]} 48. Kf1 {[%clk 0:00:46.5]}
48... Rd4 {[%clk 0:00:02.8]} 49. Ke1 {[%clk 0:00:46]} 49... Rb4 {[%clk
0:00:02.4]} 50. Kd1 {[%clk 0:00:45]} 50... Rg2 {[%clk 0:00:01.7]} 51. Kc1 {[%clk
0:00:42.6]} 51... Re4 {[%clk 0:00:01.1]} 52. Kd1 {[%clk 0:00:41.5]} 52... Rxg3
{[%clk 0:00:02]} 53. Rxf7+ {[%clk 0:00:39.5]} 53... Bxf7 {[%clk 0:00:01.7]} 54.
Rc7 {[%clk 0:00:31.2]} 54... Be6 {[%clk 0:00:02.6]} 55. Rc2 {[%clk 0:00:30.4]}
55... Rd4+ {[%clk 0:00:03.5]} 56. Ke1 {[%clk 0:00:30.4]} 56... Re3+ {[%clk
0:00:03.7]} 57. Kf1 {[%clk 0:00:30.4]} 57... Bh3+ {[%clk 0:00:04.2]} 58. Kg1
{[%clk 0:00:30.6]} 58... Re1+ {[%clk 0:00:03.9]} 59. Kf2 {[%clk 0:00:30.5]}
59... Ree4 {[%clk 0:00:02.7]} 60. Kg1 {[%clk 0:00:29.7]} 60... Rf4 {[%clk
0:00:02.9]} 61. Kh2 {[%clk 0:00:30]} 61... Bg4 {[%clk 0:00:02.4]} 62. Kg2 {[%clk
0:00:29.9]} 62... Rd1 {[%clk 0:00:02.4]} 63. Kg3 {[%clk 0:00:29.1]} 63... Rdf1
{[%clk 0:00:03.3]} 64. Rg2 {[%clk 0:00:27.5]} 64... R1f3+ {[%clk 0:00:04.2]} 65.
Kh2 {[%clk 0:00:27.9]} 65... Rh3+ {[%clk 0:00:04.1]} 66. Kg1 {[%clk 0:00:27.9]}
66... Rb4 {[%clk 0:00:04.5]} 67. Rxg4 {[%clk 0:00:27.8]} 67... Ke6 {[%clk
0:00:05.4]} 68. Kg2 {[%clk 0:00:27.9]} 68... Rd3 {[%clk 0:00:04.8]} 69. Kf2
{[%clk 0:00:28.2]} 69... Rb2+ {[%clk 0:00:04.4]} 70. Ke1 {[%clk 0:00:27.6]}
70... Ra3 {[%clk 0:00:04.6]} 71. Rc4 {[%clk 0:00:25.3]} 71... Ra1+ {[%clk
0:00:05.5]} 72. Rc1 {[%clk 0:00:23.1]} 72... Rxc1# {[%clk 0:00:06.4]} 0-1

[Event "Betsys MČR v online bleskovém šachu 2021"]
[Site "Chess.com"]
[Date "2021.04.17"]
[Round "12"]
[White "JakubPulpan"]
[Black "MartinHollan"]
[Result "1-0"]
[WhiteElo "2720"]
[BlackElo "2616"]
[TimeControl "180+1"]
[EndTime "11:02:39 PDT"]
[Termination "Uživatel JakubPulpan zvítězil na čas"]

1. Nf3 {[%clk 0:03:00.9]} 1... d5 {[%clk 0:02:58.5]} 2. b3 {[%clk 0:03:00.4]}
2... Bg4 {[%clk 0:02:55.1]} 3. e3 {[%clk 0:03:00.9]} 3... e6 {[%clk 0:02:51.2]}
4. Bb2 {[%clk 0:03:00.9]} 4... Nf6 {[%clk 0:02:51.1]} 5. Be2 {[%clk 0:03:01.1]}
5... Be7 {[%clk 0:02:48.7]} 6. O-O {[%clk 0:03:01.4]} 6... O-O {[%clk
0:02:48.6]} 7. d4 {[%clk 0:03:01.7]} 7... Nbd7 {[%clk 0:02:47.4]} 8. Nbd2 {[%clk
0:03:01.6]} 8... c5 {[%clk 0:02:46]} 9. h3 {[%clk 0:03:01.5]} 9... Bh5 {[%clk
0:02:45.6]} 10. c4 {[%clk 0:03:01.4]} 10... cxd4 {[%clk 0:02:44.8]} 11. Nxd4
{[%clk 0:03:01.5]} 11... Bxe2 {[%clk 0:02:44.2]} 12. Qxe2 {[%clk 0:03:02.4]}
12... Nb6 {[%clk 0:02:33.5]} 13. Rfd1 {[%clk 0:03:01]} 13... Rc8 {[%clk
0:02:30.3]} 14. N2f3 {[%clk 0:02:42]} 14... a6 {[%clk 0:02:18.2]} 15. cxd5
{[%clk 0:02:39.3]} 15... Qxd5 {[%clk 0:02:05.5]} 16. Rac1 {[%clk 0:01:53.6]}
16... Ne4 {[%clk 0:01:42.6]} 17. Nd2 {[%clk 0:01:40.8]} 17... Nxd2 {[%clk
0:01:29.5]} 18. Qxd2 {[%clk 0:01:32.9]} 18... a5 {[%clk 0:01:03.8]} 19. Bc3
{[%clk 0:01:10.8]} 19... Ba3 {[%clk 0:00:56.2]} 20. Rc2 {[%clk 0:01:06]} 20...
Ra8 {[%clk 0:00:52.6]} 21. Qe2 {[%clk 0:00:57]} 21... Qg5 {[%clk 0:00:44.1]} 22.
Nf3 {[%clk 0:00:49.3]} 22... Qh5 {[%clk 0:00:37.5]} 23. Bd4 {[%clk 0:00:48.8]}
23... Nd5 {[%clk 0:00:33.7]} 24. Qb5 {[%clk 0:00:48.7]} 24... Qg6 {[%clk
0:00:27.6]} 25. Re2 {[%clk 0:00:35.6]} 25... Rad8 {[%clk 0:00:23.6]} 26. Rf1
{[%clk 0:00:24.5]} 26... b6 {[%clk 0:00:13.1]} 27. Qa4 {[%clk 0:00:16.6]} 27...
Bb4 {[%clk 0:00:12.5]} 28. a3 {[%clk 0:00:16.5]} 28... Bc3 {[%clk 0:00:12.4]}
29. Qc4 {[%clk 0:00:09.6]} 29... Bxd4 {[%clk 0:00:12.1]} 30. Nxd4 {[%clk
0:00:10.5]} 30... Rc8 {[%clk 0:00:10.7]} 31. Qa6 {[%clk 0:00:09.1]} 31... Rc3
{[%clk 0:00:08.3]} 32. Ree1 {[%clk 0:00:06.9]} 32... h5 {[%clk 0:00:05.4]} 33.
b4 {[%clk 0:00:05]} 33... axb4 {[%clk 0:00:05.3]} 34. axb4 {[%clk 0:00:05.9]}
34... Nxb4 {[%clk 0:00:05.6]} 35. Qxb6 {[%clk 0:00:06.4]} 35... Nd5 {[%clk
0:00:05.9]} 36. Qd6 {[%clk 0:00:06.5]} 36... Rfc8 {[%clk 0:00:05.6]} 37. Rb1
{[%clk 0:00:06.2]} 37... Nf6 {[%clk 0:00:04.6]} 38. Rb8 {[%clk 0:00:06.3]} 38...
Kh7 {[%clk 0:00:04.9]} 39. Rxc8 {[%clk 0:00:06.4]} 39... Rxc8 {[%clk 0:00:05.8]}
40. Qf4 {[%clk 0:00:06.4]} 40... Rd8 {[%clk 0:00:05.1]} 41. Nf3 {[%clk
0:00:06.5]} 41... Rd5 {[%clk 0:00:05.4]} 42. Re1 {[%clk 0:00:03.8]} 42... Rf5
{[%clk 0:00:05]} 43. Nh4 {[%clk 0:00:04.3]} 43... Rxf4 {[%clk 0:00:04.5]} 44.
Nxg6 {[%clk 0:00:04.8]} 44... Rc4 {[%clk 0:00:05.4]} 45. Ne5 {[%clk 0:00:05]}
45... Rc5 {[%clk 0:00:05.5]} 46. Nxf7 {[%clk 0:00:04.6]} 46... Rd5 {[%clk
0:00:05.8]} 47. e4 {[%clk 0:00:03.4]} 47... Rd4 {[%clk 0:00:05.4]} 48. Ng5+
{[%clk 0:00:03.7]} 48... Kg6 {[%clk 0:00:05.2]} 49. h4 {[%clk 0:00:04.3]} 49...
e5 {[%clk 0:00:05.5]} 50. f3 {[%clk 0:00:04.8]} 50... Rd2 {[%clk 0:00:05.3]} 51.
Rb1 {[%clk 0:00:05]} 51... Rc2 {[%clk 0:00:05.6]} 52. Rb5 {[%clk 0:00:05.1]}
52... Nd7 {[%clk 0:00:05.2]} 53. Rb6+ {[%clk 0:00:05.5]} 53... Nf6 {[%clk
0:00:05.5]} 54. Re6 {[%clk 0:00:05.5]} 54... Rc5 {[%clk 0:00:05.6]} 55. Rd6
{[%clk 0:00:05.7]} 55... Ra5 {[%clk 0:00:05.6]} 56. Kh2 {[%clk 0:00:05.7]} 56...
Rc5 {[%clk 0:00:05.6]} 57. Ne6 {[%clk 0:00:05.9]} 57... Ra5 {[%clk 0:00:04.8]}
58. Rc6 {[%clk 0:00:05.3]} 58... Kf7 {[%clk 0:00:04.9]} 59. Ng5+ {[%clk
0:00:05.3]} 59... Kg6 {[%clk 0:00:05.2]} 60. Kg3 {[%clk 0:00:05.6]} 60... Rb5
{[%clk 0:00:05]} 61. Rc7 {[%clk 0:00:05.4]} 61... Rb6 {[%clk 0:00:04.4]} 62. Re7
{[%clk 0:00:04.9]} 62... Rb5 {[%clk 0:00:03.6]} 63. Ne6 {[%clk 0:00:05]} 63...
Rb6 {[%clk 0:00:04]} 64. Nf8+ {[%clk 0:00:03.6]} 64... Kh6 {[%clk 0:00:01.4]}
65. Rxe5 {[%clk 0:00:04.1]} 1-0

[Event "Betsys MČR v online bleskovém šachu 2021"]
[Site "Chess.com"]
[Date "2021.04.17"]
[Round "12"]
[White "SayQueen"]
[Black "Dvacetsekund"]
[Result "0-1"]
[WhiteElo "2020"]
[BlackElo "2204"]
[TimeControl "180+1"]
[EndTime "11:02:45 PDT"]
[Termination "Uživatel Dvacetsekund zvítězil na čas"]

1. e4 {[%clk 0:02:59]} 1... c5 {[%clk 0:02:59.2]} 2. c3 {[%clk 0:02:58.6]} 2...
d5 {[%clk 0:02:55.9]} 3. exd5 {[%clk 0:02:58.1]} 3... Qxd5 {[%clk 0:02:56.8]} 4.
d4 {[%clk 0:02:58.2]} 4... Nf6 {[%clk 0:02:56.9]} 5. Nf3 {[%clk 0:02:57.6]} 5...
Bg4 {[%clk 0:02:56.8]} 6. Be2 {[%clk 0:02:56.9]} 6... e6 {[%clk 0:02:50.3]} 7.
O-O {[%clk 0:02:54.3]} 7... cxd4 {[%clk 0:02:45.7]} 8. cxd4 {[%clk 0:02:52.9]}
8... Bd6 {[%clk 0:02:43.2]} 9. Nc3 {[%clk 0:02:51.6]} 9... Qa5 {[%clk
0:02:42.8]} 10. Qb3 {[%clk 0:02:47.8]} 10... Qb4 {[%clk 0:02:34.8]} 11. Nb5
{[%clk 0:02:36.9]} 11... Qxb3 {[%clk 0:02:04.6]} 12. Nxd6+ {[%clk 0:02:36]}
12... Ke7 {[%clk 0:02:03.9]} 13. axb3 {[%clk 0:02:32.8]} 13... Kxd6 {[%clk
0:02:02.9]} 14. Bf4+ {[%clk 0:02:26]} 14... Ke7 {[%clk 0:02:01.5]} 15. h3 {[%clk
0:02:22.3]} 15... Bh5 {[%clk 0:01:51.2]} 16. b4 {[%clk 0:02:05.2]} 16... Nd5
{[%clk 0:01:41]} 17. Bd2 {[%clk 0:02:04.6]} 17... Nd7 {[%clk 0:01:14.6]} 18. b5
{[%clk 0:01:51.2]} 18... Rhc8 {[%clk 0:01:07.4]} 19. Rfc1 {[%clk 0:01:47.2]}
19... N7b6 {[%clk 0:01:04.5]} 20. Rxc8 {[%clk 0:01:42]} 20... Nxc8 {[%clk
0:01:02.4]} 21. g4 {[%clk 0:01:39.5]} 21... Bg6 {[%clk 0:01:01.7]} 22. Ne5
{[%clk 0:01:39.1]} 22... Ncb6 {[%clk 0:00:46]} 23. f4 {[%clk 0:01:30.5]} 23...
f6 {[%clk 0:00:40.6]} 24. Nxg6+ {[%clk 0:01:26.4]} 24... hxg6 {[%clk 0:00:41.5]}
25. Bd3 {[%clk 0:01:25.5]} 25... Kf7 {[%clk 0:00:38]} 26. Kf2 {[%clk 0:01:24.8]}
26... Nc8 {[%clk 0:00:26.8]} 27. b3 {[%clk 0:01:19.7]} 27... Ncb6 {[%clk
0:00:26.5]} 28. Bc4 {[%clk 0:01:17.3]} 28... Ke7 {[%clk 0:00:21.7]} 29. Re1
{[%clk 0:01:15.2]} 29... Kd6 {[%clk 0:00:20.4]} 30. Bd3 {[%clk 0:01:11.6]} 30...
f5 {[%clk 0:00:16.8]} 31. gxf5 {[%clk 0:01:06.2]} 31... gxf5 {[%clk 0:00:17.7]}
32. Rg1 {[%clk 0:01:05.9]} 32... Rg8 {[%clk 0:00:17.2]} 33. Rg6 {[%clk
0:01:05.3]} 33... Ke7 {[%clk 0:00:16]} 34. Bc4 {[%clk 0:01:02.2]} 34... Kf7
{[%clk 0:00:15.4]} 35. Rg1 {[%clk 0:01:01.6]} 35... Rh8 {[%clk 0:00:15.5]} 36.
Kg3 {[%clk 0:00:58.8]} 36... Rc8 {[%clk 0:00:13.8]} 37. Bd3 {[%clk 0:00:53.9]}
37... Rd8 {[%clk 0:00:12.3]} 38. Ra1 {[%clk 0:00:52.9]} 38... Nc8 {[%clk
0:00:12.5]} 39. Bc4 {[%clk 0:00:50.6]} 39... Nf6 {[%clk 0:00:12.5]} 40. Be3
{[%clk 0:00:46.9]} 40... Ne4+ {[%clk 0:00:12.7]} 41. Kf3 {[%clk 0:00:45.7]}
41... Rd7 {[%clk 0:00:12.4]} 42. h4 {[%clk 0:00:39.5]} 42... b6 {[%clk
0:00:12.6]} 43. h5 {[%clk 0:00:38.2]} 43... Ne7 {[%clk 0:00:12.1]} 44. Rg1
{[%clk 0:00:36.4]} 44... Nd5 {[%clk 0:00:11.5]} 45. Rg6 {[%clk 0:00:34]} 45...
Ndf6 {[%clk 0:00:11.1]} 46. Rg1 {[%clk 0:00:27.3]} 46... Rd8 {[%clk 0:00:11.2]}
47. Ra1 {[%clk 0:00:25.5]} 47... Rd7 {[%clk 0:00:11.1]} 48. Bd3 {[%clk
0:00:23.5]} 48... Nd6 {[%clk 0:00:10.5]} 49. Rc1 {[%clk 0:00:20.9]} 49... Nxh5
{[%clk 0:00:08.4]} 50. Rh1 {[%clk 0:00:19.5]} 50... Nf6 {[%clk 0:00:08.2]} 51.
Rh8 {[%clk 0:00:19.5]} 51... Nde4 {[%clk 0:00:08.2]} 52. Rc8 {[%clk 0:00:17]}
52... Re7 {[%clk 0:00:08]} 53. Rc6 {[%clk 0:00:15.2]} 53... Nd5 {[%clk
0:00:07.7]} 54. Bc4 {[%clk 0:00:13.6]} 54... Rd7 {[%clk 0:00:07.6]} 55. Rc8
{[%clk 0:00:11.8]} 55... Nd6 {[%clk 0:00:07.7]} 56. Rc6 {[%clk 0:00:11.3]} 56...
Nxc4 {[%clk 0:00:07.3]} 57. bxc4 {[%clk 0:00:10.5]} 57... Nxe3 {[%clk
0:00:07.4]} 58. Kxe3 {[%clk 0:00:10.7]} 58... Kf6 {[%clk 0:00:07.7]} 59. Rc8
{[%clk 0:00:10.2]} 59... g5 {[%clk 0:00:07.6]} 60. Rf8+ {[%clk 0:00:09.9]} 60...
Kg7 {[%clk 0:00:07.2]} 61. Re8 {[%clk 0:00:08.6]} 61... g4 {[%clk 0:00:06.5]}
62. Rxe6 {[%clk 0:00:07.3]} 62... Kf7 {[%clk 0:00:06.9]} 63. Rh6 {[%clk
0:00:06.3]} 63... Re7+ {[%clk 0:00:07.2]} 64. Kf2 {[%clk 0:00:03.9]} 64... Re4
{[%clk 0:00:07.5]} 65. Rh7+ {[%clk 0:00:03.5]} 65... Kg6 {[%clk 0:00:07.4]} 66.
Rd7 {[%clk 0:00:02.9]} 66... Rxf4+ {[%clk 0:00:07.5]} 67. Kg2 {[%clk 0:00:02.9]}
67... Kg5 {[%clk 0:00:06.9]} 68. d5 {[%clk 0:00:02.9]} 68... Rd4 {[%clk
0:00:06.8]} 69. Rg7+ {[%clk 0:00:02.5]} 69... Kf4 {[%clk 0:00:07.3]} 70. Rxa7
{[%clk 0:00:02.1]} 70... Rd2+ {[%clk 0:00:07.5]} 71. Kg1 {[%clk 0:00:01.8]}
71... Kg3 {[%clk 0:00:07.8]} 72. Ra3+ {[%clk 0:00:02]} 72... Kh4 {[%clk
0:00:07.2]} 73. Re3 {[%clk 0:00:01.1]} 73... f4 {[%clk 0:00:07.6]} 0-1